fUSD/lending_fUSD_20240920
["ID","MTS","AMOUNT","RATE_DAILY","PERIOD"]
[338646747,1726842830410,150.0,0.00014877,30]
[338646748,1726842872674,2000.0,0.00012001,2]
[338646749,1726842892713,151.83,0.00011994,2]
[338646750,1726842906574,229.34924315,0.00022999,120]
[338646751,1726842911129,500.0,0.00022999,120]
[338646752,1726842911404,194.00499888,0.00022999,120]
[338646753,1726842915475,500.0,0.00022999,120]
[338646754,1726842915778,157.50601404,0.00022999,120]
[338646755,1726842922763,501.37614777,0.00022999,120]
[338646756,1726842926731,500.0,0.00022999,120]
[338646757,1726842927152,636.39889121,0.00022999,120]
[338646758,1726843004598,258.91,0.0001195,2]
[338646759,1726843016631,230.8,0.0001195,2]
[338646760,1726843043603,500.0,0.00022999,120]
[338646761,1726843045644,500.0,0.00022999,120]
[338646762,1726843045910,500.0,0.00022999,120]
[338646763,1726843046298,500.0,0.00022999,120]
[338646764,1726843046596,330.36741301,0.00022999,120]
[338646765,1726843065657,500.0,0.00022999,120]
[338646766,1726843065961,176.2,0.00022999,120]
[338646767,1726843130552,5000.0,0.00015,30]
[338646768,1726843226454,322.3,0.00011961,2]
[338646769,1726843226703,322.3,0.00011964,2]
[338646770,1726843226916,322.3,0.00011967,2]
[338646771,1726843227182,322.3,0.00011971,2]
[338646772,1726843227435,322.3,0.00011974,2]
[338646773,1726843227696,322.3,0.00011977,2]
[338646774,1726843227919,322.3,0.0001198,2]
[338646775,1726843228165,322.3,0.00011983,2]
[338646776,1726843228431,322.3,0.00011986,2]
[338646777,1726843228693,322.3,0.00011989,2]
[338646778,1726843228937,322.3,0.00011993,2]
[338646779,1726843229167,322.3,0.00011996,2]
[338646780,1726843229415,322.3,0.00011999,2]
[338646781,1726843237082,-250.0,0.00012002,2]
[338646782,1726843237533,500.0,0.00022999,120]
[338646783,1726843312423,500.0,0.00022999,120]
[338646784,1726843312821,202.15,0.00022999,120]
[338646785,1726843323382,271.49,9.851e-05,2]
[338646786,1726843335019,500.0,0.00022999,120]
[338646787,1726843336560,2371.3015141,0.00012,2]
[338646788,1726843339738,500.35069982,0.00022999,120]
[338646789,1726843342290,500.0,0.00022999,120]
[338646790,1726843342640,500.0,0.00022999,120]
[338646791,1726843342899,342.79,0.00022999,120]
[338646792,1726843403453,250.0,0.00011708,2]
[338646793,1726843411415,150.0,0.00014877,30]
[338646795,1726843506993,500.0,0.00022999,120]
[338646796,1726843507291,500.0,0.00022999,120]
[338646797,1726843507771,500.0,0.00022999,120]
[338646798,1726843507851,500.0,0.00022999,120]
[338646799,1726843508148,169.86109593,0.00022999,120]
[338646800,1726843511288,1000.0,0.00011761,2]
[338646801,1726843562775,230.8,0.00011805,2]
[338646802,1726843641720,-211.66767677,0.00012002,2]
[338646803,1726843642816,-200.66772655,0.00012002,2]
[338646804,1726843643582,-186.13221025,0.00012002,2]
[338646805,1726843648087,166.15,0.00011751,2]
[338646806,1726843747155,501.41385055,0.00022999,120]
[338646808,1726843776834,500.29079085,0.00022999,120]
[338646809,1726843780808,500.0,0.00022999,120]
[338646810,1726843782741,500.55304463,0.00022999,120]
[338646811,1726843804307,154.31,0.00011759,2]
[338646812,1726843804572,154.31,0.00011764,2]
[338646813,1726843804793,154.31,0.00011769,2]
[338646814,1726843805026,154.31,0.00011774,2]
[338646815,1726843805279,154.31,0.00011779,2]
[338646816,1726843805524,154.31,0.00011783,2]
[338646817,1726843805761,154.31,0.00011788,2]
[338646818,1726843805986,154.31,0.00011793,2]
[338646819,1726843806429,154.31,0.00011798,2]
[338646820,1726843806645,154.31,0.00011803,2]
[338646821,1726843806873,154.31,0.00011808,2]
[338646822,1726843807085,154.31,0.00011813,2]
[338646823,1726843807307,154.31,0.00011818,2]
[338646833,1726843832019,-11.06018945,0.00012002,2]
[338646834,1726843832029,-152.0,0.00012006,3]
[338646835,1726843832041,-999.99,0.00012029,2]
[338646836,1726843832050,-1770.24111886,0.00012029,2]
[338646837,1726843832061,-648.78668318,0.00012029,2]
[338646838,1726843832073,-3588.18219796,0.00012029,2]
[338646839,1726843832082,-537.17,0.0001205,2]
[338646840,1726843832091,-499.99,0.0001205,2]
[338646841,1726843832101,-271.49,0.00012115,2]
[338646842,1726843832110,-152.0,0.00012245,4]
[338646843,1726843832119,-152.0,0.00012485,5]
[338646844,1726843832129,-2118.8868,0.000126,2]
[338646845,1726843832138,-533.47,0.000127,2]
[338646846,1726843832148,-428.14,0.000127,2]
[338646847,1726843832156,-357.98,0.000127,2]
[338646848,1726843832166,-151.33,0.000127,2]
[338646849,1726843832175,-753.33,0.000127,2]
[338646850,1726843832184,-150.0,0.000127,2]
[338646851,1726843832194,-150.0,0.000127,2]
[338646852,1726843832203,-150.0,0.000127,2]
[338646853,1726843832212,-422.74,0.000127,2]
[338646854,1726843832222,-152.0,0.00012725,6]
[338646855,1726843832231,-500.0,0.00012803,2]
[338646856,1726843832240,-500.0,0.00012812,2]
[338646857,1726843832249,-500.0,0.00012821,2]
[338646858,1726843832258,-796.0,0.00012826,2]
[338646859,1726843832268,-4601.33583673,0.0001287,2]
[338646860,1726843832277,-500.0,0.00012896,2]
[338646861,1726843832288,-200.0,0.00012896,2]
[338646862,1726843832297,-150.0,0.00012899,2]
[338646863,1726843832306,-4485.3917,0.000129,2]
[338646864,1726843832315,-522.4924,0.000129,2]
[338646865,1726843832325,-6593.976,0.000129,2]
[338646866,1726843832334,-1838.89354646,0.000129,2]
[338646868,1726843832354,-285.29701288,0.000129,2]
[338646869,1726843832364,-1892.48594066,0.000129,2]
[338646870,1726843832374,-1000.0,0.000129,2]
[338646872,1726843832383,-2203.7053,0.000129,2]
[338646874,1726843832393,-2976.9847211,0.000129,2]
[338646875,1726843832402,-152.0,0.00012965,7]
[338646876,1726843832411,-281.834,0.00012969,2]
[338646877,1726843832420,-159.3902091,0.0001299,2]
[338646878,1726843832429,-159.3902091,0.0001299,2]
[338646879,1726843832439,-151.38,0.0001299,2]
[338646880,1726843832448,-1221.2871059,0.00012996,2]
[338646881,1726843832458,-10184.9216362,0.00012996,2]
[338646882,1726843832467,-980.6292027,0.00012996,2]
[338646883,1726843832477,-85884.75136485,0.00013,2]
[338646884,1726843832488,-1108.19691343,0.00013,2]
[338646885,1726843832499,-15699.9359719,0.00013,2]
[338646886,1726843832511,-342.1,0.00013,2]
[338646887,1726843832523,-35773.80274791,0.00013,2]
[338646888,1726843832724,-118920.14381058,0.00013,2]
[338646889,1726843833543,250.0,0.00011966,2]
[338646890,1726843838084,-5314.22404625,0.00013,2]
[338646891,1726843838096,-300.32,0.00013,2]
[338646892,1726843838107,-440.1604635,0.00013,2]
[338646893,1726843838120,-775.44461026,0.00013,2]
[338646894,1726843838131,-89994.079,0.00013,2]
[338646895,1726843838143,-479.23585153,0.00013,2]
[338646896,1726843838154,-500.0,0.00013,2]
[338646897,1726843838164,-1656.96940033,0.00013,2]
[338646898,1726843838175,-496.804842,0.00013,2]
[338646899,1726843838187,-403930.6994801,0.00013,2]
[338646900,1726843838198,-1856.5631075,0.00013,2]
[338646901,1726843838209,-17996.72186206,0.00013,2]
[338646902,1726843838221,-734.84497895,0.00013,2]
[338646903,1726843838232,-6469.85011692,0.00013,2]
[338646904,1726843838244,-13230.58505481,0.00013,2]
[338646905,1726843838256,-669.980028,0.00013,2]
[338646906,1726843838267,-3723.61098937,0.00013,2]
[338646907,1726843838276,-34894.3961605,0.00013,2]
[338646908,1726843838314,-1288188.45510102,0.00013,2]
[338646909,1726843838344,-36130.57749794,0.00013,2]
[338646910,1726843838394,-586.27968751,0.00013,2]
[338646911,1726843838406,-24059.66385186,0.00013,2]
[338647028,1726843840192,-12660.6,0.00013,2]
[338647029,1726843840204,-1907.16003649,0.00013,2]
[338647030,1726843840236,-25542.18993968,0.00013,2]
[338647068,1726843843125,-1655.12026756,0.00013,2]
[338647069,1726843843137,-57840.38848633,0.00013,2]
[338647070,1726843843251,-29750.0,0.00013,2]
[338647081,1726843846094,-443.834,0.00013,2]
[338647082,1726843846106,-18886.39629546,0.00013,2]
[338647083,1726843846118,-302.6121,0.00013,2]
[338647084,1726843846216,-84148.8749893,0.00013,2]
[338647085,1726843846226,-500.0,0.00013,2]
[338647086,1726843846235,-500.0,0.00013,2]
[338647087,1726843846245,-347567.168921,0.00013,2]
[338647088,1726843846339,-1484.68051231,0.00013,2]
[338647089,1726843846377,-9520.1337847,0.00013,2]
[338647090,1726843846388,-6009.24920875,0.00013,2]
[338647091,1726843877296,263.09,0.00010498,2]
[338647092,1726843985265,150.0,0.00014877,30]
[338647093,1726844146747,250.0,0.00011977,2]
[338647094,1726844244894,323.15,0.00011961,2]
[338647095,1726844339362,2000.0,0.00022,60]
[338647096,1726844379929,250.0,0.00011959,2]
[338647097,1726844407709,165.6,0.00010959,2]
[338647098,1726844479127,500.0,0.00022999,120]
[338647099,1726844479392,500.0,0.00022999,120]
[338647100,1726844480123,500.0,0.00022999,120]
[338647101,1726844480391,500.0,0.00022999,120]
[338647102,1726844480679,500.0,0.00022999,120]
[338647103,1726844481041,500.0,0.00022999,120]
[338647104,1726844481299,500.0,0.00022999,120]
[338647105,1726844481556,500.0,0.00022999,120]
[338647106,1726844481846,500.0,0.00022999,120]
[338647107,1726844482115,500.0,0.00022999,120]
[338647108,1726844482384,500.0,0.00022999,120]
[338647109,1726844482663,500.0,0.00022999,120]
[338647110,1726844482925,422.97518594,0.00022999,120]
[338647111,1726844534556,259.34,0.00010014,2]
[338647112,1726844562914,150.0,0.00014877,30]
[338647113,1726844696685,176.13,0.00011921,2]
[338647114,1726844704130,150.0,0.00011688,2]
[338647115,1726844708824,150.0,0.00011688,2]
[338647116,1726844709318,150.0,0.0001185,2]
[338647117,1726844714248,150.08851546,0.00011688,2]
[338647118,1726844716602,150.00000001,0.00011688,2]
[338647119,1726844720305,150.0,0.00011688,2]
[338647120,1726844720756,150.0,0.00011796,2]
[338647121,1726844721025,150.0,0.00011904,2]
[338647122,1726844724359,155.2,0.00011846,2]
[338647123,1726844726186,150.0,0.00011688,2]
[338647124,1726844729603,150.0,0.00011688,2]
[338647125,1726844731508,150.0,0.00011688,2]
[338647126,1726844734174,150.0,0.00011688,2]
[338647127,1726844736077,150.0,0.00011688,2]
[338647128,1726844741363,150.0,0.00011688,2]
[338647129,1726844745120,2402.16,0.00022999,120]
[338647130,1726844745421,2402.16,0.00022999,120]
[338647131,1726844745677,2402.16,0.00022999,120]
[338647132,1726844746025,2402.16,0.00022999,120]
[338647133,1726844746352,2402.16,0.00022999,120]
[338647134,1726844746717,2402.16,0.00022999,120]
[338647135,1726844746775,150.088282,0.00011688,2]
[338647136,1726844747009,2402.16,0.00022999,120]
[338647137,1726844748549,2402.16,0.00022999,120]
[338647138,1726844748825,2402.16,0.00022999,120]
[338647139,1726844749483,2402.16,0.00022999,120]
[338647140,1726844749834,2402.16,0.00022999,120]
[338647141,1726844750165,2402.16,0.00022999,120]
[338647142,1726844750559,2402.16,0.00022999,120]
[338647143,1726844750904,2402.16,0.00022999,120]
[338647144,1726844751466,2402.16,0.00022999,120]
[338647145,1726844751805,2402.16,0.00022999,120]
[338647146,1726844752165,2402.16,0.00022999,120]
[338647147,1726844752482,2402.16,0.00022999,120]
[338647148,1726844752823,2402.16,0.00022999,120]
[338647149,1726844753155,2402.16,0.00022999,120]
[338647150,1726844753502,2402.16,0.00022999,120]
[338647151,1726844754005,2402.16,0.00022999,120]
[338647152,1726844754170,2402.16,0.00022999,120]
[338647153,1726844754434,2402.22522341,0.00022999,120]
[338647154,1726844767358,2074.52,0.00022999,120]
[338647155,1726844767712,2074.52,0.00022999,120]
[338647156,1726844768073,2074.52,0.00022999,120]
[338647157,1726844768424,2074.52,0.00022999,120]
[338647158,1726844768793,2074.52,0.00022999,120]
[338647159,1726844769454,2074.52,0.00022999,120]
[338647160,1726844769731,2074.52,0.00022999,120]
[338647161,1726844770071,2074.52,0.00022999,120]
[338647162,1726844770692,2074.52,0.00022999,120]
[338647163,1726844770974,2074.52,0.00022999,120]
[338647164,1726844771299,2074.52,0.00022999,120]
[338647165,1726844771679,2074.52,0.00022999,120]
[338647166,1726844771945,2074.52,0.00022999,120]
[338647167,1726844772310,2074.52,0.00022999,120]
[338647168,1726844772592,2074.52,0.00022999,120]
[338647169,1726844772923,2074.52,0.00022999,120]
[338647170,1726844773262,2074.52,0.00022999,120]
[338647171,1726844773544,2074.52,0.00022999,120]
[338647172,1726844773885,2074.52,0.00022999,120]
[338647173,1726844774210,2074.52,0.00022999,120]
[338647174,1726844774713,2074.52,0.00022999,120]
[338647175,1726844775214,2074.52,0.00022999,120]
[338647176,1726844775545,2074.52,0.00022999,120]
[338647177,1726844775833,2074.70826502,0.00022999,120]
[338647178,1726844795215,195.76,0.00022,60]
[338647180,1726844808685,207.12,0.0001181,2]
[338647181,1726844873780,1000.0,0.00011798,2]
[338647182,1726844906063,250.0,0.0001181,2]
[338647183,1726844909996,250.0,0.00011815,2]
[338647184,1726844952694,179.87,0.00010959,2]
[338647185,1726845009393,1012.6158767,0.00015,30]
[338647193,1726845032248,-150.0,0.00012012,2]
[338647194,1726845032259,-150.0,0.00012012,2]
[338647195,1726845032271,-150.0,0.00012121,2]
[338647196,1726845032282,-150.0,0.00012121,2]
[338647197,1726845032294,-150.0,0.00012175,2]
[338647198,1726845032307,-796.0,0.00012185,2]
[338647199,1726845032318,-150.0,0.00012229,2]
[338647200,1726845032329,-259.34,0.00012278,2]
[338647201,1726845032339,-151.58,0.00012307,2]
[338647202,1726845032349,-150.66,0.00012307,2]
[338647203,1726845032364,-300.0,0.00012309,2]
[338647204,1726845032375,-10000.0,0.0001231,2]
[338647205,1726845032385,-150.0,0.00012337,2]
[338647206,1726845032396,-150.0,0.00012337,2]
[338647207,1726845032408,-9771.4,0.00012337,2]
[338647208,1726845032419,-499.99,0.00012337,2]
[338647209,1726845032431,-193.12,0.000124,2]
[338647210,1726845032442,-254.1,0.000124,2]
[338647211,1726845032452,-162.26,0.00012429,2]
[338647212,1726845032463,-181.93,0.00012445,2]
[338647213,1726845032474,-150.0,0.00012445,2]
[338647214,1726845032484,-150.0,0.00012499,2]
[338647215,1726845032494,-150.0,0.00012553,2]
[338647216,1726845032504,-150.0,0.00012553,2]
[338647217,1726845032514,-150.99,0.00012559,2]
[338647218,1726845032524,-150.0,0.00012662,2]
[338647219,1726845032535,-150.0,0.00012662,2]
[338647220,1726845032545,-5000.65852,0.0001275,2]
[338647221,1726845032557,-150.0,0.0001277,2]
[338647222,1726845032568,-150.0,0.00012824,2]
[338647223,1726845032578,-796.0,0.00012826,2]
[338647224,1726845032588,-150.0,0.00012837,2]
[338647226,1726845032599,-1147.0,0.00012838,2]
[338647228,1726845032609,-150.0,0.00012838,2]
[338647230,1726845032620,-13489.0,0.00012838,2]
[338647232,1726845032631,-5378.533,0.00012838,2]
[338647234,1726845032641,-263.0,0.00012841,2]
[338647236,1726845032652,-214.263,0.00012846,2]
[338647237,1726845032663,-150.0,0.00012854,2]
[338647238,1726845032673,-150.0,0.00012878,2]
[338647239,1726845032685,-500.0,0.00012891,2]
[338647240,1726845032695,-500.0,0.00012896,2]
[338647241,1726845032706,-200.0,0.00012896,2]
[338647242,1726845032718,-3590.8812,0.000129,2]
[338647243,1726845032728,-163.52327028,0.000129,2]
[338647244,1726845032739,-150.0,0.000129,2]
[338647245,1726845032750,-500.0,0.000129,2]
[338647246,1726845032760,-763.2023613,0.000129,2]
[338647247,1726845032770,-7500.0,0.000129,2]
[338647248,1726845032780,-304.5,0.000129,2]
[338647249,1726845032789,-221.93364426,0.000129,2]
[338647250,1726845032799,-2131.88058778,0.000129,2]
[338647251,1726845032811,-310.35504543,0.000129,2]
[338647252,1726845032821,-4816.19996764,0.000129,2]
[338647253,1726845032832,-278.29833178,0.000129,2]
[338647254,1726845032842,-255.0,0.00012928,2]
[338647255,1726845032853,-150.0,0.00012932,2]
[338647256,1726845032863,-150.0,0.00012935,2]
[338647257,1726845032875,-261.344,0.00012946,2]
[338647258,1726845032886,-199.30114704,0.00012973,2]
[338647259,1726845032896,-277.111,0.00012973,2]
[338647260,1726845032907,-287.84635417,0.00012986,2]
[338647261,1726845032918,-260.60373138,0.00012986,2]
[338647262,1726845032928,-258.07109402,0.00012986,2]
[338647263,1726845032939,-194.63955812,0.00012986,2]
[338647264,1726845032948,-150.0,0.00012986,2]
[338647265,1726845032960,-150.0,0.00012986,2]
[338647266,1726845032971,-159.39020911,0.0001299,2]
[338647267,1726845032981,-151.19,0.0001299,2]
[338647268,1726845032992,-18360.0284245,0.00012996,2]
[338647269,1726845033002,-1129.1530503,0.00012996,2]
[338647270,1726845033012,-317.09238987,0.00012999,2]
[338647271,1726845033023,-500.0,0.00012999,2]
[338647272,1726845033036,-486.68727377,0.00012999,2]
[338647273,1726845033046,-510.0,0.00013,2]
[338647274,1726845033058,-19050.20368225,0.00013,2]
[338647275,1726845033078,-1163.4,0.00013,2]
[338647276,1726845033092,-7415.783315,0.00013,2]
[338647277,1726845033112,-1759.92,0.00013,2]
[338647278,1726845033124,-1039.14973622,0.00013,2]
[338647279,1726845033137,-6849.56710779,0.00013,2]
[338647280,1726845033154,-837.79784387,0.00013,2]
[338647285,1726845038348,-3103.86,0.000129,2]
[338647286,1726845038362,-122918.89758973,0.00013,2]
[338647287,1726845038373,-1030870.8281261,0.00013,2]
[338647288,1726845038383,-131294.86938519,0.00013,2]
[338647289,1726845038483,-339408.24746151,0.00013,2]
[338647290,1726845038494,-1000.0,0.00013,2]
[338647291,1726845038503,-593973.12986494,0.00013,2]
[338647292,1726845038516,-1275.20026284,0.00013,2]
[338647293,1726845038621,-21051.86113177,0.00013,2]
[338647294,1726845038634,-9909.52942066,0.00013,2]
[338647295,1726845038648,-4715.84485834,0.00013,2]
[338647296,1726845038667,-994.90595235,0.00013,2]
[338647297,1726845038683,-8242.2201732,0.00013,2]
[338647298,1726845038696,-31528.26893945,0.00013,2]
[338647299,1726845038707,-3251.7474205,0.00013,2]
[338647458,1726845040235,-539.06096133,0.00013,2]
[338647478,1726845040430,-1181200.39946412,0.00013,2]
[338647480,1726845040441,-494711.06328494,0.00013,2]
[338647481,1726845040452,-995010.96289147,0.00013,2]
[338647482,1726845040462,-1103.13805558,0.00013,2]
[338647483,1726845040472,-1344638.27242785,0.00013,2]
[338647484,1726845040483,-213457.11534108,0.00013,2]
[338647485,1726845040493,-228430.42393337,0.00013,2]
[338647486,1726845040503,-1200.0,0.00013,3]
[338647487,1726845040514,-202.0,0.00013,2]
[338647488,1726845040524,-202.0,0.00013,2]
[338647489,1726845040534,-213.0,0.00013,2]
[338647490,1726845040544,-213.0,0.00013,2]
[338647491,1726845040555,-213.0,0.00013,2]
[338647493,1726845040567,-213.0,0.00013,2]
[338647495,1726845040577,-213.0,0.00013,2]
[338647497,1726845040587,-213.0,0.00013,2]
[338647499,1726845040597,-213.0,0.00013,2]
[338647501,1726845040607,-213.0,0.00013,2]
[338647504,1726845040618,-213.0,0.00013,2]
[338647506,1726845040629,-213.0,0.00013,2]
[338647508,1726845040639,-213.0,0.00013,2]
[338647510,1726845040649,-260010.00078925,0.00013,2]
[338647512,1726845040664,-1165.4,0.00013,2]
[338647515,1726845040677,-2607.13999706,0.00013,2]
[338647756,1726845043407,-30334.5305366,0.00013,2]
[338647759,1726845043419,-6596.30190851,0.00013,2]
[338647761,1726845043432,-3464.80280266,0.00013,2]
[338647763,1726845043445,-5356.75878829,0.00013,2]
[338647765,1726845043457,-17431.97848714,0.00013,2]
[338648022,1726845046365,-4017.4951,0.000128,2]
[338648024,1726845046375,-1967.9519,0.00013,2]
[338648028,1726845046409,-14147.23527007,0.00013,2]
[338648031,1726845046421,-291.13962928,0.00013,2]
[338648035,1726845046458,-869.59829253,0.00013,2]
[338649897,1726845096373,253.18,0.00010498,2]
[338649898,1726845104121,150.0,0.00014877,30]
[338649899,1726845222123,150.0,0.00023,120]
[338649900,1726845323718,500.0,0.00022999,120]
[338649901,1726845342818,354.53342643,0.00022999,120]
[338649902,1726845342877,500.0,0.00022999,120]
[338649903,1726845348609,500.0,0.00022999,120]
[338649904,1726845349954,500.0,0.00022999,120]
[338649905,1726845352540,500.0,0.00022999,120]
[338649906,1726845356520,500.0,0.00022999,120]
[338649907,1726845356662,196.72,0.00022999,120]
[338649908,1726845357113,500.0,0.00022999,120]
[338649909,1726845357445,500.0,0.00022999,120]
[338649910,1726845357496,500.0,0.00022999,120]
[338649911,1726845357759,331.74,0.00022999,120]
[338649912,1726845357813,556.65,0.00022999,120]
[338649913,1726845360524,500.0,0.00022999,120]
[338649914,1726845362028,599.03,0.00022999,120]
[338649915,1726845363468,500.0,0.00022999,120]
[338649916,1726845363830,308.86388168,0.00022999,120]
[338649917,1726845367948,500.0,0.00022999,120]
[338649918,1726845368257,163.95,0.00022999,120]
[338649919,1726845368595,500.0,0.00022999,120]
[338649920,1726845368722,500.0,0.00022999,120]
[338649921,1726845369056,500.0,0.00022999,120]
[338649922,1726845369391,419.15,0.00022999,120]
[338649923,1726845371844,500.0,0.00022999,120]
[338649924,1726845372925,500.0,0.00022999,120]
[338649925,1726845373291,500.0,0.00022999,120]
[338649926,1726845373590,500.0,0.00022999,120]
[338649927,1726845373934,544.96,0.00022999,120]
[338649928,1726845375155,500.0,0.00022999,120]
[338649929,1726845375445,500.0,0.00022999,120]
[338649930,1726845375787,500.0,0.00022999,120]
[338649931,1726845376178,500.0,0.00022999,120]
[338649932,1726845376488,500.0,0.00022999,120]
[338649933,1726845376546,500.0,0.00022999,120]
[338649934,1726845376963,500.0,0.00022999,120]
[338649935,1726845377013,275.91,0.00022999,120]
[338649936,1726845377088,500.0,0.00022999,120]
[338649937,1726845377431,500.0,0.00022999,120]
[338649938,1726845377783,500.0,0.00022999,120]
[338649939,1726845378180,196.44,0.00022999,120]
[338649940,1726845385289,513.26146988,0.00022999,120]
[338649941,1726845388006,504.66770441,0.00022999,120]
[338649942,1726845523735,1000.0,0.00011974,2]
[338649943,1726845606860,500.0,0.00022999,120]
[338649944,1726845609466,500.0,0.00022999,120]
[338649945,1726845614041,500.4415627,0.00022999,120]
[338649946,1726845616829,500.0,0.00022999,120]
[338649947,1726845619432,500.0,0.00022999,120]
[338649948,1726845621954,500.0,0.00022999,120]
[338649949,1726845626657,500.0,0.00022999,120]
[338649950,1726845632059,500.56581469,0.00022999,120]
[338649951,1726845634581,500.0,0.00022999,120]
[338649952,1726845639841,500.65461333,0.00022999,120]
[338649953,1726845642640,500.0,0.00022999,120]
[338649954,1726845645001,500.90687492,0.00022999,120]
[338649955,1726845647871,187.59841892,0.00022999,120]
[338649956,1726845650346,500.0,0.00022999,120]
[338649957,1726845652711,500.60402299,0.00022999,120]
[338649958,1726845655020,500.0,0.00022999,120]
[338649959,1726845657989,500.0,0.00022999,120]
[338649960,1726845660648,500.0,0.00022999,120]
[338649961,1726845663236,500.0,0.00022999,120]
[338649962,1726845666220,500.46463344,0.00022999,120]
[338649963,1726845676093,150.0,0.00014877,30]
[338649964,1726845691477,251.31,9.927e-05,2]
[338649965,1726845718345,1074.32,0.00011809,2]
[338649969,1726845800591,9421.45,0.00011838,2]
[338649970,1726845834537,155.18,0.00011838,2]
[338649971,1726845902959,150.0,0.00011688,2]
[338649972,1726845903302,150.0,0.00011832,2]
[338649973,1726845903875,150.0,0.00011976,2]
[338649974,1726845928650,258.52,0.00011759,2]
[338649975,1726845940510,150.24,0.0001178,2]
[338649976,1726845962386,500.0,0.00022999,120]
[338649977,1726845962714,500.0,0.00022999,120]
[338649979,1726845994705,1500.0,0.00011803,2]
[338649980,1726846071487,200.0,0.00011819,2]
[338649981,1726846081697,250.0,0.00011819,2]
[338649983,1726846118501,189.1,0.00010959,2]
[338649988,1726846219814,238.74,9.978e-05,2]
[338649999,1726846231413,-413.64,0.00012023,2]
[338650000,1726846231423,-152.0,0.00012062,3]
[338650001,1726846231432,-150.0,0.00012121,2]
[338650002,1726846231443,-141.06953894,0.00012128,2]
[338650003,1726846231468,-47.71046106,0.00012128,2]
[338650004,1726846231478,-238.74,0.00012241,2]
[338650005,1726846231487,-150.0,0.00012265,2]
[338650006,1726846231497,-152.0,0.00012358,4]
[338650007,1726846231507,-413.64,0.00012369,2]
[338650008,1726846231516,-413.64,0.00012369,2]
[338650009,1726846231525,-300.0,0.00012378,2]
[338650010,1726846231535,-187.27,0.00012379,2]
[338650011,1726846231544,-219.6,0.00012379,2]
[338650012,1726846231553,-130.35953894,0.00012379,2]
[338650013,1726846231565,-1472.1462219,0.00012379,2]
[338650014,1726846231576,-851.45896926,0.00012379,2]
[338650015,1726846231588,-479.84771151,0.00012379,2]
[338650016,1726846231599,-1043.43755839,0.00012379,2]
[338650017,1726846231609,-499.99,0.00012379,2]
[338650018,1726846231619,-150.0,0.00012409,2]
[338650019,1726846231628,-150.0,0.00012553,2]
[338650020,1726846231638,-152.0,0.00012654,5]
[338650021,1726846231648,-150.0,0.00012698,2]
[338650022,1726846231657,-1000.0,0.000127,2]